Cogmind - Beta 13 @@@ ROGUE MODE // 2024.05.18 @ 18:45:27 Player: Lunace Result: Destroyed by Y-72 Warden with Quantum Rifle Performance ------------- Evolutions (4) 2000 Regions Visited (11) 2200 Robots Destroyed (105) 525 Value Destroyed (4231) 4231 Prototype IDs (21) 420 Alien Tech Used (0) 0 Bonus (527) 527 TOTAL SCORE: 9903 Bonus ------- High Alert Combat Kills 43 Follower Combat Kills 184 Met Data Miner 300 Cogmind --------- Core Integrity 0/850 Matter 292/300 Energy 98/100 System Corruption 4% Temperature Cool (9) Movement Core (50) Location -5/Proximity Caves Parts ------- > --- POWER (1) -------- (None) > --- PROPULSION (4) --- (None) > --- UTILITY (6) ------ 0b10 Decoder Chip [Looter] > --- WEAPON (4) ------- (None) > --- INVENTORY (5) ---- Particle Reactor Compact Wheel Improved Terrain Scanner Energy Mantle Improved System Restoration Module Peak State ------------ > --- POWER ------------ Fusion Compressor > --- PROPULSION ------- Improved Titanium Leg Flexi-carbon Leg Flexi-carbon Leg Flexi-carbon Leg > --- UTILITY ---------- Large Storage Unit Improved Signal Interpreter Core Analyzer Core Analyzer Energy Mantle Long-range Tractor Beam > --- WEAPON ----------- Heavy Machine Gun Enhanced Gauss Cannon Enhanced Gauss Cannon Powered Hammer > --- INVENTORY -------- Deuterium Engine Carbon-fiber Leg Compact Wheel Advanced Heat Sink Matter Compressor Matter Compressor Core Analyzer Improved Light Armor Plating System Restoration Module Long-range Tractor Beam Long-range Tractor Beam [Rating: 71] Favorites ----------- Power Deuterium Engine Engine Deuterium Engine Power Core Fission Core Propulsion Aluminum Leg Treads Light Treads Leg Aluminum Leg Wheel Compact Wheel Hover Unit Gravmag System Utility Core Analyzer Device Long-range Tractor Beam Storage Large Storage Unit Processor Core Analyzer Hackware Improved System Shield Protection Light Armor Plating Weapon Enhanced Gauss Cannon Energy Gun Heavy Laser Energy Cannon Heavy Ion Cannon Ballistic Gun Gauss Rifle Ballistic Cannon Enhanced Gauss Cannon Launcher Missile Launcher Impact Weapon Powered Hammer Slashing Weapon Makeshift Axe Piercing Weapon Heavy Pick Build | -11 -10 -10 -10 -9 -8 -7 -6 -6 -6 -6 -5 ------- Run | Yrd Mat Min Exi Min Mat Fac Fac Low Low Dat Pro Slots Evolved 8 | . . . . . 4 2 2 . . . . Power . | . . . . . . . . . . . . Propulsion 2 | . . . . . 2 . . . . . . Utility 4 | . . . . . 1 2 1 . . . . Weapon 2 | . . . . . 1 . 1 . . . . Parts Attached 120 | 6 5 4 2 . 21 25 45 3 1 . 8 Power 14 | 1 1 1 . . 2 3 5 . . . 1 Engine 9 | 1 1 1 . . 1 2 2 . . . 1 Core 5 | . . . . . 1 1 3 . . . . Reactor . | . . . . . . . . . . . . Propulsion 30 | 2 1 3 . . 6 5 8 . 1 . 4 Treads 1 | . . . . . . 1 . . . . . Leg 23 | 2 1 3 . . 6 2 6 . . . 3 Wheel 4 | . . . . . . 1 1 . 1 . 1 Hover 2 | . . . . . . 1 1 . . . . Flight . | . . . . . . . . . . . . Utility 40 | 1 1 . 1 . 6 10 17 2 . . 2 Device 18 | . . . . . 3 6 8 1 . . . Storage 4 | 1 . . 1 . 1 . 1 . . . . Processor 10 | . . . . . 1 2 5 1 . . 1 Hackware 1 | . . . . . . . 1 . . . . Protection 7 | . 1 . . . 1 2 2 . . . 1 Artifact . | . . . . . . . . . . . . Weapon 36 | 2 2 . 1 . 7 7 15 1 . . 1 Energy Gun 5 | . . . . . 3 . 2 . . . . Energy Cannon 1 | . . . . . . 1 . . . . . Ballistic Gun 14 | 2 1 . . . 2 3 5 1 . . . Ballistic Cannon 5 | . 1 . 1 . . . 3 . . . . Launcher 4 | . . . . . 1 1 2 . . . . Special Weapon . | . . . . . . . . . . . . Impact Weapon 5 | . . . . . . 2 2 . . . 1 Slashing Weapon 1 | . . . . . 1 . . . . . . Piercing Weapon 1 | . . . . . . . 1 . . . . Special Melee Weapon . | . . . . . . . . . . . . Unidentified Prototypes 2 | . . . . . . 1 1 . . . . Parts Lost 37 | . . . . . 3 9 12 2 2 . 9 Power 1 | . . . . . . . . . . . 1 Propulsion 16 | . . . . . . 5 5 2 1 . 3 Utility 7 | . . . . . 1 2 2 . . . 2 Weapon 13 | . . . . . 2 2 5 . 1 . 3 Highest Loss Streak 5 | . . . . . 3 2 5 2 2 . 5 To Critical Strikes . | . . . . . . . . . . . . Average Slot Usage (%) 89 | . 98 100 100 100 98 87 88 86 84 80 61 Engine 6 | . 14 14 14 14 6 6 1 6 6 6 4 Core 1 | . . . . . 2 . 4 . . . . Leg 19 | . 28 28 28 28 35 16 17 13 12 6 8 Hover 1 | . . . . . . 2 3 . . . . Device 8 | . . . . . 9 17 11 6 6 6 2 Storage 8 | . 14 14 14 14 9 7 6 6 6 6 4 Processor 9 | . . . . . 1 4 14 20 20 20 16 Hackware 1 | . . . . . . . . 6 6 6 4 Protection 5 | . 12 14 14 14 7 5 1 . . . 2 Energy Gun 1 | . . . . . 10 . 3 . . . . Ballistic Gun 12 | . 25 28 22 14 7 13 7 13 11 6 2 Ballistic Cannon 4 | . 2 . 5 14 2 . 3 13 13 13 7 Launcher 1 | . . . . . 1 5 . . . . . Impact Weapon 1 | . . . . . . 1 5 . . . . Naked Turns 37 | . . . . . . . . . . . 37 Heaviest Build 74 | 12 18 17 22 22 46 65 74 57 57 53 53 Greatest Support 80 | 20 20 30 30 30 53 55 80 35 35 16 50 Greatest Overweight (x) 13 | . . . . . . 13 3 1 3 3 3 Average Overweight (x) . | . . . . . . 1 . 1 1 3 . Largest Inventory Capacity 15 | 8 8 8 10 10 15 15 15 15 15 15 15 Average Capacity 13 | 7 8 8 8 10 14 15 15 15 15 15 13 Most Carried 15 | 3 8 8 8 7 12 15 15 12 12 11 12 Average Carried 9 | 1 6 7 7 7 7 10 11 10 11 11 9 Final Capacity 15 | 8 8 8 10 10 15 15 15 15 15 15 5 Final Carried 14 | 3 8 8 7 7 12 14 12 11 11 11 5 Class Distribution -------------------- 37% | Mutant 24% | Scavenger-Gunner 14% | Gunner 11% | Scavenger-Mutant 8% | Scavenger-Tank Dominant Class ---------------- Mutant | -10/Materials Mutant | -10/Mines Mutant | -10/Exiles Mutant | -9/Mines Scavenger-Mutant | -8/Materials Scavenger-Gunner | -7/Factory Gunner | -6/Factory Scavenger-Gunner | -6/Lower Caves Scavenger-Gunner | -6/Lower Caves Gunner | -6/Data Miner Mutant | -5/Proximity Caves Resources | -11 -10 -10 -10 -9 -8 -7 -6 -6 -6 -6 -5 ----------- Run | Yrd Mat Min Exi Min Mat Fac Fac Low Low Dat Pro Matter Collected 4553 | 258 190 182 10 52 401 610 1383 526 626 . 315 Remotely 1490 | . . . . . 8 561 921 . . . . Salvage Created 4508 | . 275 92 . 77 647 802 1725 206 413 . 271 Parts 173 | . 14 2 . 6 38 46 50 5 8 . 4 Haulers Intercepted . | . . . . . . . . . . . . Recyclers Shooed . | . . . . . . . . . . . . Parts Field Recycled . | . . . . . . . . . . . . Retrieved Matter . | . . . . . . . . . . . . Parts Self-Destructed 26 | . . . . . . . . 9 8 . 9 Prevented . | . . . . . . . . . . . . Kills | -11 -10 -10 -10 -9 -8 -7 -6 -6 -6 -6 -5 ------- Run | Yrd Mat Min Exi Min Mat Fac Fac Low Low Dat Pro Combat Hostiles Destroyed 86 | . 6 2 . 4 13 16 24 5 9 . 7 Melee 17 | . . . . . 10 3 3 . . . 1 Guns 35 | . 6 2 . 3 3 8 9 1 3 . . Cannons 19 | . . . . 1 . . 2 4 6 . 6 AOE 8 | . . . . . . 4 4 . . . . Classes Destroyed 14 | . 1 . . 1 5 4 2 1 . . . Worker 4 | . . . . . . 2 2 . . . . Builder 3 | . . . . . . 2 1 . . . . Tunneler 1 | . . . . . . 1 . . . . . Recycler 6 | . . . . . 1 . 5 . . . . Watcher 5 | . . . . . 2 1 2 . . . . Swarmer 11 | . . . . 3 3 . 4 . . . 1 Grunt 52 | . 6 2 . 1 7 9 10 4 8 . 5 Brawler 2 | . . . . . . . 1 . 1 . . Duelist 2 | . . . . . 1 . . . . . 1 Sentry 7 | . . . . . 1 4 2 . . . . Specialist 2 | . . . . . . . 2 . . . . Hunter 3 | . . . . . 1 . 2 . . . . Programmer 6 | . . . . . . 3 3 . . . . Thief 1 | . . . . . . . . 1 . . . Best Kill Streak 11 | . 2 1 . 3 4 7 11 4 4 . 5 Combat Bots Only 5 | . 2 1 . 3 4 4 4 4 4 . 5 Max Kills in Single Turn 3 | . 1 1 . 1 1 3 2 1 1 . 1 Gunslinging . | . . . . . . . . . . . . Exploded 2 | . . . . . . 2 1 . . . . Melee 1 | . . . . . 1 1 1 . . . 1 Uniques/NPCs Destroyed . | . . . . . . . . . . . . Combat | -11 -10 -10 -10 -9 -8 -7 -6 -6 -6 -6 -5 -------- Run | Yrd Mat Min Exi Min Mat Fac Fac Low Low Dat Pro Hostile Shots Fired 821 | . 38 14 . 9 50 307 239 35 39 . 90 Missed 269 | . 15 5 . 3 11 109 74 7 15 . 30 Damage Taken 7297 | . 272 119 . 49 687 1582 2336 498 453 . 1301 Core 1167 | . 33 25 . 12 71 159 309 79 95 . 384 Absorbed by Shields 703 | . . . . . . 289 376 38 . . . Core Remaining (%) 84 | 100 . . . 72 87 77 . . . . . Volleys Fired 215 | . 40 12 . 6 18 43 51 7 18 . 20 Largest 4 | . 2 2 . 2 3 3 3 4 4 . 3 Hottest 172 | . 40 40 . 55 116 95 166 172 172 . 144 Shots Fired 486 | . 64 24 . 12 46 97 109 28 65 . 41 Gun 342 | . 48 24 . 6 40 89 85 14 29 . 7 Cannon 131 | . 16 . . 6 6 . 19 14 36 . 34 Launcher 13 | . . . . . . 8 5 . . . . Special . | . . . . . . . . . . . . Kinetic 448 | . 64 24 . 12 32 89 93 28 65 . 41 Thermal 19 | . . . . . 8 . 11 . . . . Explosive 13 | . . . . . . 8 5 . . . . Electromagnetic 6 | . . . . . 6 . . . . . . Robot Hit Streak 15 | . 5 3 . 9 13 14 15 6 4 . 5 Robot Miss Streak 8 | . 2 2 . 1 3 4 5 4 8 . 8 Penetration Max 1 | . . . . . . 1 . . . . 1 Secondary Targets 2 | . . . . . 1 . 1 . . . . Max Gunslinging Chain 1 | . . . . . 1 . 1 . . . . Shots Hit Robots 366 | . 32 13 . 9 54 83 103 14 33 . 25 Core Hits 181 | . 12 6 . 5 22 35 51 12 25 . 13 Critical Kills 4 | . 1 . . . . 1 2 . . . . Critical Parts Destroyed 10 | . . . . . 1 1 8 . . . . Critical Strikes 29 | . 1 . . . 3 2 11 3 3 . 6 Destroy 2 | . 1 . . . 1 . . . . . . Blast 13 | . . . . . . . 1 3 3 . 6 Smash 12 | . . . . . . 2 10 . . . . Sever 2 | . . . . . 2 . . . . . . Melee Attacks 111 | . . . . . 32 30 44 . . . 5 Impact 79 | . . . . . . 30 44 . . . 5 Slashing 32 | . . . . . 32 . . . . . . Piercing . | . . . . . . . . . . . . Sneak Attacks 8 | . . . . . 1 2 5 . . . . Combat Hostiles . | . . . . . . . . . . . . Follow-up Attacks . | . . . . . . . . . . . . Damage Inflicted 10619 | . 408 176 . 138 1421 2742 3515 459 883 . 877 Guns 3891 | . 408 173 . 74 454 1234 1017 189 276 . 66 Cannons 1987 | . . . . 64 68 . 348 270 607 . 630 Explosions 1276 | . . . . . . 669 607 . . . . Melee 3462 | . . . . . 899 839 1543 . . . 181 Ramming 3 | . . 3 . . . . . . . . . Kinetic 5578 | . 408 173 . 138 383 1234 1204 459 883 . 696 Thermal 277 | . . . . . 116 . 161 . . . . Explosive 1276 | . . . . . . 669 607 . . . . Electromagnetic 23 | . . . . . 23 . . . . . . Impact 2563 | . . . . . . 839 1543 . . . 181 Slashing 899 | . . . . . 899 . . . . . . Piercing . | . . . . . . . . . . . . Highest Corruption 5 | . . . . . . 3 5 . . . 4 Average Corruption 2 | . . . . . . 2 2 . . . 4 Corruption Purged 10 | . . . . . . 3 7 . . . . Corruption Blocked . | . . . . . . . . . . . . Effects 19 | . . . . . . 7 10 . . . 2 Message Errors 2 | . . . . . . 1 1 . . . . Matter Fused 7 | . . . . . . 3 3 . . . 1 Energy Discharges 3 | . . . . . . 2 1 . . . . Parts Fused 1 | . . . . . . . 1 . . . . Data Loss (minor) 4 | . . . . . . . 3 . . . 1 Misfires 1 | . . . . . . 1 . . . . . Weapon Failures 1 | . . . . . . . 1 . . . . Overload Shots . | . . . . . . . . . . . . Overflow Damage 886 | . . . . . 49 127 649 23 . . 38 Projectiles 28 | . . . . . . . . 23 . . 5 Explosions 32 | . . . . . . 31 1 . . . . Melee 826 | . . . . . 49 96 648 . . . 33 Knockbacks 38 | . . . . 2 4 3 18 2 1 . 8 Impact 16 | . . . . . . 3 13 . . . . Kinetic 14 | . . . . 1 2 . 2 2 1 . 6 Secondary 8 | . . . . 1 2 . 3 . . . 2 Self-Inflicted Damage 89 | . . . . . . . 89 . . . . Shots 2 | . . . . . . . 2 . . . . Rammed . | . . . . . . . . . . . . Targets Rammed 1 | . . 1 . . . . . . . . . Kicked 1 | . . 1 . . . . . . . . . Crushed . | . . . . . . . . . . . . Highest Temperature 351 | . 29 12 . 66 82 18 252 351 145 . 19 Average Temperature 64 | . 6 5 . 32 29 8 81 197 61 . 9 Received Heat Transfer 2166 | . 165 69 . 12 162 443 433 252 216 . 414 Effects 3 | . . . . . . . . 3 . . . Interference 3 | . . . . . . . . 3 . . . Siege Activations . | . . . . . . . . . . . . Robots Corrupted . | . . . . . . . . . . . . Combat Hostiles . | . . . . . . . . . . . . Parts Fried 15 | . . . . . . 1 14 . . . . Impact Corruptions 29 | . . . . . . 5 23 . . . 1 Robots Melted . | . . . . . . . . . . . . Combat Hostiles . | . . . . . . . . . . . . Parts Melted 2 | . . . . . . . 2 . . . . Heat Transferred 555 | . . . . . 259 . 296 . . . . Parts Sabotaged . | . . . . . . . . . . . . Parts Stolen . | . . . . . . . . . . . . Parts Stripped . | . . . . . . . . . . . . Power Chain Reactions . | . . . . . . . . . . . . Alert | -11 -10 -10 -10 -9 -8 -7 -6 -6 -6 -6 -5 ------- Run | Yrd Mat Min Exi Min Mat Fac Fac Low Low Dat Pro Peak Influence 475 | . 289 198 . 115 339 367 475 . . . . Initial 135 | . . 112 . . 44 135 94 . . . . Average 192 | . 105 129 . 110 196 176 257 . . . . Maximum Alert Level 2 | . 1 . . . 1 1 2 . . . . Low Security (%) 56 | 100 77 100 . 100 38 62 33 . . . . Level 1 37 | . 22 . . . 61 37 49 . . . . Level 2 6 | . . . . . . . 17 . . . . Level 3 . | . . . . . . . . . . . . Level 4 . | . . . . . . . . . . . . Level 5 . | . . . . . . . . . . . . High Security . | . . . . . . . . . . . . Max Security . | . . . . . . . . . . . . Squads Dispatched 26 | . 3 . . 1 4 9 8 . . . 1 Investigation 6 | . 1 . . 1 2 2 . . . . . Extermination 4 | . . . . . . 2 2 . . . . Reinforcement 11 | . 2 . . . 1 2 6 . . . . Assault 1 | . . . . . . . . . . . 1 Garrison 4 | . . . . . 1 3 . . . . . Intercept . | . . . . . . . . . . . . Searches Triggered . | . . . . . . . . . . . . Construction Impeded 2 | . . . . . . 1 1 . . . . Haulers Reinforced 1 | . . . . . . . 1 . . . . Active Scanning Responses . | . . . . . . . . . . . . Cargo Convoy Interrupts . | . . . . . . . . . . . . Stealth | -11 -10 -10 -10 -9 -8 -7 -6 -6 -6 -6 -5 --------- Run | Yrd Mat Min Exi Min Mat Fac Fac Low Low Dat Pro Distress Signals 3 | . 1 . . . . 1 1 . . . . Communications Jammed . | . . . . . . . . . . . . Distress Signals . | . . . . . . . . . . . . Times Spotted 122 | . 12 4 . 3 18 18 30 5 9 . 23 Peak Tracking Total 12 | . 4 2 . 2 4 4 5 4 4 . 12 Tactical Retreats 6 | . 2 . . . . . 2 . . . 2 Traps | -11 -10 -10 -10 -9 -8 -7 -6 -6 -6 -6 -5 ------- Run | Yrd Mat Min Exi Min Mat Fac Fac Low Low Dat Pro Traps Triggered 11 | . 1 . . . 2 4 4 . . . . Indirectly . | . . . . . . . . . . . . Trap Hack Attempts . | . . . . . . . . . . . . Triggered . | . . . . . . . . . . . . Disarmed . | . . . . . . . . . . . . Reprogrammed . | . . . . . . . . . . . . Reused . | . . . . . . . . . . . . Traps Extracted . | . . . . . . . . . . . . Installed . | . . . . . . . . . . . . Triggered 2 | . . . . . . . . . 1 . 1 Machines | -11 -10 -10 -10 -9 -8 -7 -6 -6 -6 -6 -5 ---------- Run | Yrd Mat Min Exi Min Mat Fac Fac Low Low Dat Pro Machines Disabled 6 | . . . . 1 1 1 3 . . . . Max in Single Turn 1 | . . . . 1 1 1 1 . . . . Garrison Access 1 | . . . . . . . 1 . . . . Machines Repaired . | . . . . . . . . . . . . Machines Dismantled . | . . . . . . . . . . . . Machines Sabotaged . | . . . . . . . . . . . . Overloaded Fab Kills . | . . . . . . . . . . . . Hacking | -11 -10 -10 -10 -9 -8 -7 -6 -6 -6 -6 -5 --------- Run | Yrd Mat Min Exi Min Mat Fac Fac Low Low Dat Pro Machines Accessed 28 | . 6 . 1 1 1 6 9 . . 4 . Terminals 15 | . 5 . . 1 1 3 5 . . . . Fabricators 3 | . . . . . . 1 2 . . . . Repair Stations 1 | . . . . . . . 1 . . . . Recycling Units 2 | . 1 . . . . 1 . . . . . Scanalyzers . | . . . . . . . . . . . . Garrison Access 2 | . . . . . . 1 1 . . . . Total Hacks 85 | . 28 . 1 6 2 10 18 . . 20 . Successful 53 | . 16 . 1 1 2 3 10 . . 20 . Failed 30 | . 11 . . 4 . 7 8 . . . . Catastrophic 8 | . . . . 1 . 4 3 . . . . Database Lockouts 2 | . 1 . . 1 . . . . . . . Manual 51 | . 23 . . 6 2 7 13 . . . . Terminals 51 | . 25 . . 6 2 6 12 . . . . Fabricators 4 | . . . . . . 1 3 . . . . Repair Stations 1 | . . . . . . . 1 . . . . Recycling Units 4 | . 3 . . . . 1 . . . . . Scanalyzers . | . . . . . . . . . . . . Garrison Access 4 | . . . . . . 2 2 . . . . Terminal Hacks 33 | . 8 . 1 1 . . 3 . . 20 . Record 4 | . . . 1 . . . . . . 3 . Part Schematic 10 | . . . . . . . . . . 10 . Robot Schematic 4 | . . . . . . . . . . 4 . Prototype ID Bank 7 | . 2 . . 1 . . 1 . . 3 . Branch Access Points 3 | . 2 . . . . . 1 . . . . Terminal Index 1 | . 1 . . . . . . . . . . Locate Traps 3 | . 2 . . . . . 1 . . . . Zone Layout 1 | . 1 . . . . . . . . . . Fabricator Hacks 2 | . . . . . . . 2 . . . . Build 2 | . . . . . . . 2 . . . . Repair Station Hacks . | . . . . . . . . . . . . Recycling Unit Hacks . | . . . . . . . . . . . . Scanalyzer . | . . . . . . . . . . . . Garrison Access Hacks 1 | . . . . . . . 1 . . . . Seal Access 1 | . . . . . . . 1 . . . . Unauthorized Hacks 17 | . 8 . . . 2 3 4 . . . . Terminals 15 | . 7 . . . 2 3 3 . . . . Assimilate 2 | . 2 . . . . . . . . . . Botnet 11 | . 4 . . . 1 3 3 . . . . Operators 2 | . 1 . . . 1 . . . . . . Fabricators . | . . . . . . . . . . . . Repair Stations . | . . . . . . . . . . . . Recycling Units 1 | . 1 . . . . . . . . . . Recyclers 1 | . 1 . . . . . . . . . . Scanalyzers . | . . . . . . . . . . . . Garrison Access 1 | . . . . . . . 1 . . . . Watchers 1 | . . . . . . . 1 . . . . Data Cores Recovered . | . . . . . . . . . . . . Used . | . . . . . . . . . . . . Hacking Detections 22 | . 6 . . 1 1 6 8 . . . . Full Trace Events 2 | . . . . 1 . 1 . . . . . Feedback Events . | . . . . . . . . . . . . Feedback Blocked . | . . . . . . . . . . . . Robot Schematics Acquired 4 | . . . . . . . . . . 4 . Robots Built . | . . . . . . . . . . . . Authchips . | . . . . . . . . . . . . Time . | . . . . . . . . . . . . Total Robot Build Rating . | . . . . . . . . . . . . Part Schematics Acquired 10 | . . . . . . . . . . 10 . Parts Built 3 | . . . . . . . 3 . . . . Authchips . | . . . . . . . . . . . . Time 146 | . . . . . . . 146 . . . . Total Part Build Rating 19 | . . . . . . . 19 . . . . Parts Repaired . | . . . . . . . . . . . . Time . | . . . . . . . . . . . . Parts Recycled . | . . . . . . . . . . . . Recycled Matter . | . . . . . . . . . . . . Retrieved Matter . | . . . . . . . . . . . . Retrieved Components . | . . . . . . . . . . . . Parts Scanalyzed . | . . . . . . . . . . . . Part Schematics Acquired . | . . . . . . . . . . . . Parts Damaged . | . . . . . . . . . . . . Bothacking | -11 -10 -10 -10 -9 -8 -7 -6 -6 -6 -6 -5 ------------ Run | Yrd Mat Min Exi Min Mat Fac Fac Low Low Dat Pro Used RIF Installer . | . . . . . . . . . . . . Robots Hacked . | . . . . . . . . . . . . Non-combat . | . . . . . . . . . . . . Combat . | . . . . . . . . . . . . Robot Hacks Applied . | . . . . . . . . . . . . Relay Couplers Released . | . . . . . . . . . . . . Fabnet Peak Effective % . | . . . . . . . . . . . . Robots Rewired . | . . . . . . . . . . . . Allies Hacked . | . . . . . . . . . . . . Hacks Repelled . | . . . . . . . . . . . . Allies | -11 -10 -10 -10 -9 -8 -7 -6 -6 -6 -6 -5 -------- Run | Yrd Mat Min Exi Min Mat Fac Fac Low Low Dat Pro Total Allies 4 | . . 3 . . . . . . . . 1 Largest Group 2 | . . 2 2 . . . . . . . 1 Highest-Rated Group 96 | . . 62 62 . . . . . . . 96 Highest-Rated Ally 96 | . . 31 31 . . . . . . . 96 Total Orders . | . . . . . . . . . . . . Ally Attacks 42 | . . 15 . . . . . . . . 27 Total Damage 1108 | . . 186 . . . . . . . . 922 Kills 7 | . . 2 . . . . . . . . 5 Allies Corrupted 1 | . . . . . . . . . . . 1 Allies Melted . | . . . . . . . . . . . . Intel | -11 -10 -10 -10 -9 -8 -7 -6 -6 -6 -6 -5 ------- Run | Yrd Mat Min Exi Min Mat Fac Fac Low Low Dat Pro Robot Analysis Total . | . . . . . . . . . . . . Derelict Logs Recovered 5 | . . 3 . . . . . . 2 . . Drone Launches . | . . . . . . . . . . . . Drone Recoveries . | . . . . . . . . . . . . Exploration | -11 -10 -10 -10 -9 -8 -7 -6 -6 -6 -6 -5 ------------- Run | Yrd Mat Min Exi Min Mat Fac Fac Low Low Dat Pro Turns Passed 7114 | 61 396 479 289 344 668 1437 1946 409 603 112 370 Spaces Moved 3991 | 44 206 326 219 239 349 622 1141 195 283 78 289 Core 134 | 4 . . . . . 6 . . . . 124 Treads 26 | . . . . . . 6 20 . . . . Legs 3136 | 40 206 326 219 239 349 432 818 195 239 . 73 Wheels 364 | . . . . . . 141 9 . 44 78 92 Hover 331 | . . . . . . 37 294 . . . . Flight . | . . . . . . . . . . . . Fastest Speed 50 | 50 120 120 130 130 125 125 120 195 145 145 50 Average Speed 139 | 113 120 128 130 130 125 170 128 195 187 145 98 Slowest Speed 700 | 120 120 130 130 130 126 700 320 195 195 145 200 Overloaded Moves . | . . . . . . . . . . . . Propulsion Burnouts . | . . . . . . . . . . . . Robots Hopped . | . . . . . . . . . . . . Cave-ins Triggered . | . . . . . . . . . . . . Exploration Rate (%) 41 | 3 37 77 62 45 34 22 28 34 42 69 40 Regions Visited 11 Branch Regions 7 Pre-discovered Areas 3 | . . 1 1 . . . . . . 1 . Known Exits Taken 5 | . 1 . . . . . 1 1 1 1 . Unknown Exits Taken 6 | 1 . 1 1 1 1 1 . . . . . Scrap Searched 5 | . . 1 . . . . . 1 2 . 1 Spaces Dug . | . . . . . . . . . . . . Terrain Destroyed 179 | . . . . . 1 53 70 9 29 . 17 Melee . | . . . . . . . . . . . . Projectile 66 | . . . . . 1 . 10 9 29 . 17 AOE 112 | . . . . . . 52 60 . . . . Terrain Rammed . | . . . . . . . . . . . . Walls Destroyed . | . . . . . . . . . . . . Machines Disabled . | . . . . . . . . . . . . Actions | -11 -10 -10 -10 -9 -8 -7 -6 -6 -6 -6 -5 --------- Run | Yrd Mat Min Exi Min Mat Fac Fac Low Low Dat Pro Total 4939 | 52 291 362 224 260 511 862 1446 207 315 77 332 Wait 346 | . 32 12 . 16 62 108 99 1 13 . 3 Move 3980 | 43 205 325 218 238 348 621 1140 194 282 77 289 Hop . | . . . . . . . . . . . . Pick Up 61 | 3 6 3 1 . 16 11 17 1 1 . 2 Fast Attach 56 | 6 1 . . . 7 14 23 . . . 5 Attach 31 | . . . . . 7 4 15 1 1 . 3 Detach 11 | . . . . . . 5 4 . . . 2 Swap 33 | . 4 4 2 . 7 7 7 2 . . . Drop 71 | . 3 5 3 . 14 19 23 1 . . 3 Fire 215 | . 40 12 . 6 18 43 51 7 18 . 20 Melee 111 | . . . . . 32 30 44 . . . 5 Ram . | . . . . . . . . . . . . Kick 1 | . . 1 . . . . . . . . . Crush . | . . . . . . . . . . . . Escape Stasis 23 | . . . . . . . 23 . . . . Rewire . | . . . . . . . . . . . . Trap . | . . . . . . . . . . . . Miscellaneous . | . . . . . . . . . . . . Route ------- -11/Scrapyard -10/Materials (discovered 2 exits: *Min x2) -10/Mines (discovered 2 exits: [*Mat] / *Exi) -10/Exiles -9/Mines -8/Materials (discovered 2 exits: *Fac / Sto) -7/Factory -6/Factory (discovered 4 exits: *Fac x2 / *Low x2) -6/Lower Caves -6/Lower Caves -6/Data Miner -5/Proximity Caves History --------- Turn | Location | Event 3 | -11/Scrapyard | Discovered new exit (range 15) 62 | -11/Scrapyard | Entered Materials 159 | -10/Materials | Identified exit to Mines 314 | -10/Materials | Build established: Mutant 389 | -10/Materials | Central database locked down 458 | -10/Materials | Entered Mines 649 | -10/Mines | Discovered new exit (range 3) 720 | -10/Mines | Learned Materials stockpile data 750 | -10/Mines | Received a Mining Laser from a helpful Derelict 833 | -10/Mines | Learned location of 1 exit from Materials 836 | -10/Mines | Assembled infested the area 928 | -10/Mines | Discovered new exit (range 5) 937 | -10/Mines | Entered Exiles 937 | -10/Exiles | Accompanied by 2 allies 967 | -10/Exiles | Led the pair of lost Derelicts to a safe place 970 | -10/Exiles | Met 8R-AWN 991 | -10/Exiles | Met EX-HEX 1030 | -10/Exiles | Met EX-BIN 1056 | -10/Exiles | Met EX-DEC 1062 | -10/Exiles | Learned location of Zion (-7) 1212 | -10/Exiles | Discovered new exit (range 14) 1226 | -10/Exiles | Entered Mines 1237 | -9/Mines | Central database locked down 1269 | -9/Mines | Met a Derelict bent on vengeance 1335 | -9/Mines | Discovered new exit (range 7) 1570 | -9/Mines | Entered Materials 1570 | -8/Materials | Evolved 4 slots: Propulsion x2, Utility x1, Weapon x1 1571 | -8/Materials | Identified exit to Storage 1632 | -8/Materials | Garrison activated, responded to threat 1749 | -8/Materials | Lost 3 parts (1u2w) 1981 | -8/Materials | Build established: Scavenger-Mutant 2136 | -8/Materials | Discovered new exit (range 15) 2238 | -8/Materials | Entered Factory 2238 | -7/Factory | Evolved 2 slots: Utility x2 2330 | -7/Factory | Build established: Scavenger-Tank 2848 | -7/Factory | Build established: Scavenger-Gunner 3478 | -7/Factory | Discovered new exit (range 15) 3675 | -7/Factory | Entered another Factory area 3675 | -6/Factory | Evolved 2 slots: Utility x1, Weapon x1 3815 | -6/Factory | Build established: Mutant 4307 | -6/Factory | Lost 5 parts (3n2w) 4481 | -6/Factory | Fabricated Energy Mantle? 4570 | -6/Factory | Build established: Scavenger-Mutant 4891 | -6/Factory | Discovered new exit (range 11) 4985 | -6/Factory | Identified exit to Factory 5119 | -6/Factory | Fabricated Enh. Gauss Cannon? 5396 | -6/Factory | Discovered exit to Factory (range 3) 5451 | -6/Factory | Build established: Gunner 5532 | -6/Factory | Identified exit to Lower Caves 5621 | -6/Factory | Entered Lower Caves 5922 | -6/Lower Caves | Build established: Scavenger-Gunner 6018 | -6/Lower Caves | Discovered new exit (range 6) 6028 | -6/Lower Caves | Identified exit to Lower Caves 6030 | -6/Lower Caves | Entered another Lower Caves area 6038 | -6/Lower Caves | Learned location of 1 exit from Factory 6218 | -6/Lower Caves | Core integrity fell below 50% 6402 | -6/Lower Caves | Identified exit to Data Miner 6626 | -6/Lower Caves | Encountered a Warlord checkpoint 6633 | -6/Lower Caves | Entered Data Miner 6633 | -6/Data Miner | Discovered new exit (range 6) 6639 | -6/Data Miner | Identified exit to Proximity Caves 6661 | -6/Data Miner | Met Data Miner 6687 | -6/Data Miner | Learned location of Section 7 (-2) 6687 | -6/Data Miner | Acquired the access code to Warlord's prototype stash 6712 | -6/Data Miner | Received God Mode back door access code from Data Miner 6745 | -6/Data Miner | Entered Proximity Caves 6747 | -5/Proximity Caves | Spotter reported a threat 6748 | -5/Proximity Caves | Spotter reported a threat 6801 | -5/Proximity Caves | Spotter reported a threat 6838 | -5/Proximity Caves | Build established: Gunner 6891 | -5/Proximity Caves | Escorted by Enhanced Grunt 6920 | -5/Proximity Caves | Spotter reported a threat 6945 | -5/Proximity Caves | Lost 5 parts (1p1n1u2w) 7009 | -5/Proximity Caves | Attracted the attention of an 0b10 outpost 7046 | -5/Proximity Caves | Core integrity fell below 20% 7049 | -5/Proximity Caves | Released all parts (8) 7062 | -5/Proximity Caves | Spotted B-75 Beast 7080 | -5/Proximity Caves | Lost 4 parts (2n1u1w) 7115 | -5/Proximity Caves | Destroyed by Y-72 Warden with Quantum Rifle Last Messages --------------- 07049_ Released Imp. Signal Interpreter. 07049_ Released Imp. System Shield. 07049_ Released Core Analyzer. 07049_ Released Imp. Deuterium Engine. 07049_ Released Flexi-carbon Leg. 07054_ System corrupted: Component data lost. 07071_ Slug penetrates Wall. 07084_ Dropped Matter Compressor. 07084_ Acquired Particle Reactor. 07086_ Acquired 0b10 Decoder Chip [Looter]. 07089_ Acquired 9 matter. 07090_ Dropped Lrn. Tractor Beam. 07090_ Acquired Energy Mantle. 07094_ System corrupted: Matter fused (-7). 07101_ Penetrated by Slug. 07101_ Slug penetrates Wall. 07102_ M-28 Smith repairs L-41 Fighter. 07107_ M-28 Smith fits Backup Laser III on L-41 Fighter. 07108_ M-28 Smith repairs Carbon-fiber Leg. Map ----- +----------------------------------------------------+ | ???????????????????????# ##??? #??????????? | | ???????????????????????## ##??? #??????????? | | ????????????????????????# ##???###??????????? | | ???????????????????????## ####?????????????? | | ???????????????????????# ##????????????? | | ????????????? #???????## #????????????? | | ????????????# ##??????### #????????????? | | ???????????? ##???????# #????????????? | | ???????????? #???????# ##????????????? | | ???????????? #???????# #?????????????? | | ???????????# ???####### #?????????????? | | ?????????## #????# #?????????????? | | ?????????# #????# ####### #?????????????? | | ?????????# ??????# #""""# #?????????????? | | ???###???# #???##### #" # #?????????????? | | ???# ##### #???# =# #?????????????? | | #### ## #???# * # ##?????????????? | | #????# ##!#" # ##??????????????? | | ##????#= #!/#""""# ##???????????????? | | ## #######%* ! ####### #????????????????? | | ### ! ##/%! ##???????????????? | | ?# ####### ;#???????????????? | | ##########????## m #???????????????? | | #??????????#### #???????????????? | | ## #?????????## gl Y #???????????????? | | ?## ##?????????# @ l b ##??????????????? | | ??## #?????????# ## ##?????????????? | | ???## #?????????# #?## b #?????????????? | | ????# ##?????????# ???## b ###?????????????? | | ????## ###?????????# ?????# ##???????????????? | | ?????###??????????# ??????# ##???????????????? | | ?????????????????? ??????## ###?????????????? | | ????????????????? ??????## ##????????????? | | ???????????????? ???????# #????????????? | | ?????????????????????????# ##????????????? | | ????????????????????????## ####?????????????? | | ??????????????????????### ###????????????????? | | ??????????????????????# ##??????????????????? | | ??????????????????????## ####???????????????????? | | ???????????????????????###???????????????????????? | | ?????????????????????????????????????????????????? | | ?????????????????????????????????????????????????? | | ?????????????????????????????????????????????????? | | ?????????????????????????????????????????????????? | | ?????????????????????????????????????????????????? | | ?????????????????????????????????????????????????? | | ?????????????????????????????????????????????????? | | ?????????????????????????????????????????????????? | | ?????????????????????????????????????????????????? | | ?????????????????????????????????????????????????? | +----------------------------------------------------+ Best States ------------- Heat Dissipation 62 Energy Generation 25 Energy Capacity 310 Matter Stores 300 Matter Capacity 300 Sight Range 16 Terrain Scan Range 16 Terrain Scan Density 210 Armor Coverage 600 Evasion (%) 55 Targeting Accuracy 8 Melee Accuracy 5 Core Analysis 9 Recoil Reduction 1 Matter Filtering 30 Defensive Hacking 12 Item Schematics ----------------- Combat Drone Bay | -6/Data Miner | Free Lgt. Regenerative Plating | -6/Data Miner | Free Enh. Flexi-carbon Leg | -6/Data Miner | Free Prc. Energy Filter | -6/Data Miner | Free Ionic Axe | -6/Data Miner | Free Myomer Leg | -6/Data Miner | Free Adv. Actuator Array | -6/Data Miner | Free Hvy. Gauss Cannon | -6/Data Miner | Free Lgt. Antimatter Reactor | -6/Data Miner | Free Adv. Recalibrator | -6/Data Miner | Free Robot Schematics ------------------ G-50 Soldier | -6/Data Miner | Free R-10 Processor | -6/Data Miner | Free L-41 Fighter | -6/Data Miner | Free M-36 Artificer | -6/Data Miner | Free Fabricated ------------ Energy Mantle | x1 | -6/Factory | Preloaded Enh. Gauss Cannon | x2 | -6/Factory | Preloaded Alien Tech Used ----------------- None Achievements -------------- None Challenges ------------ None Game ------ Seed UltimateFireCleaver Manual? 0 Play Time 00:54:56 Cumulative 191.8 hours Start 2024.05.18 @ 17:52:01 End 2024.05.18 @ 18:45:27 Sessions 1 Manual Loads 0 Difficulty Rogue Special Mode None Game No. 186 Rogue 181 Adventurer 5 Explorer 0 Win Type - Total 3 Types 2/0/0/1/0/0/0/0/0 Lore% 54 Gallery% 75 Achievement% 56 Wizard Run 0 Options --------- Layout 2 ASCII 0 Keyboard 0 Movement Mouse Keybinds 0 Fullscreen 1 Font 24/Terminus Map View 50x44 Zoom Use 0% Tactical HUD 1 Map Filters NONE Filters NONE Steam 1 RUN: 5b877bbd-acae-4ce4-95a4-c71029389727